fUST/lending_fUST_20240112
["ID","MTS","AMOUNT","RATE_DAILY","PERIOD"]
[311294130,1705038638742,-10506.50980465,0.00026265,2]
[311294131,1705038638750,-1831.74343847,0.00026266,2]
[311294132,1705038638764,-2630.21718258,0.00026266,2]
[311294133,1705038638777,-502.67168207,0.00026266,2]
[311294134,1705038638786,-2612.9024984,0.00026268,2]
[311294136,1705038638795,-178.044373,0.00026328,2]
[311294137,1705038638805,-19845.09,0.0002779,3]
[311294139,1705038638815,-16537.58,0.0002779,3]
[311294141,1705038638824,-4203.10068201,0.0002779,3]
[311294155,1705038641657,-3996.53522461,0.000278,2]
[311294157,1705038641668,-12681.32362399,0.000278,2]
[311294160,1705038641680,-1006.95239703,0.000278,2]
[311294179,1705038643609,-1771.2527903,0.000278,2]
[311294180,1705038643622,-4691.3342645,0.000278,2]
[311294181,1705038643668,-16132.65000004,0.000278,2]
[311294183,1705038643680,-35014.46787024,0.000278,2]
[311294363,1705039831755,-976.30954437,0.0002019,2]
[311294364,1705039831764,-1195.46446057,0.00020191,2]
[311294366,1705039831773,-219.02226915,0.00020192,2]
[311294367,1705039831782,-155.02480397,0.00020192,2]
[311294369,1705039831792,-274.85727939,0.00020193,2]
[311294372,1705039831811,-402.3303781,0.00020193,2]
[311294373,1705039831821,-1995.67179352,0.0002024,2]
[311294375,1705039831830,-1535.10183662,0.00023282,2]
[311294377,1705039831841,-540.95901069,0.00023282,2]
[311294464,1705039837937,-22823.93915269,0.00023282,2]
[311294465,1705039837947,-268.325847,0.00023608,2]
[311294466,1705039837956,-166.6666677,0.00023884,2]
[311294467,1705039837966,-250.0,0.00023955,2]
[311294468,1705039837975,-170.81326,0.00024023,2]
[311294469,1705039837985,-11449.8624383,0.00024366,2]
[311294470,1705039837995,-178.419954,0.00024796,2]
[311294471,1705039838004,-289.5463958,0.00025,2]
[311294472,1705039838013,-5950.25473392,0.00025698,2]
[311294473,1705039838023,-262.78337502,0.000257,2]
[311294474,1705039838032,-7161.93573176,0.00026966,2]
[311294475,1705039838042,-3478.12894861,0.00027242,2]
[311294476,1705039838051,-9083.89,0.0002778,3]
[311294477,1705039838059,-6228.67221937,0.0002778,3]
[311294485,1705039841734,-1341.23778063,0.0002778,3]
[311294486,1705039841743,-14775.70172251,0.000278,2]
[311294487,1705039841754,-3314.65607422,0.000278,2]
[311294488,1705039841763,-300.0,0.000278,2]
[311294489,1705039841773,-200.0,0.000278,2]
[311294490,1705039841782,-2080.28320628,0.000278,2]
[311294491,1705039841793,-1329.90612635,0.000278,2]
[311294492,1705039841808,-498.2498629,0.000278,2]
[311294493,1705039841817,-261.04615334,0.000278,2]
[311294494,1705039841826,-240.5901508,0.000278,7]
[311294495,1705039841838,-1483.83263283,0.000278,7]
[311294501,1705039842865,-689.53090244,0.00027799,2]
[311294502,1705039842875,-1695.46909756,0.000278,7]
[311294503,1705039842887,-518.325847,0.000278,7]
[311294515,1705039843312,-10382.14202231,0.000278,7]
[311295024,1705041032003,-219.02226915,0.00021999,2]
[311295026,1705041032015,-155.01550155,0.00021999,2]
[311295028,1705041032025,-302.0,0.00022,2]
[311295030,1705041032037,-166.666666,0.00024773,2]
[311295033,1705041032049,-289.5463958,0.00025,2]
[311295035,1705041032064,-239.68536314,0.00025019,2]
[311295038,1705041032076,-1527.4792142,0.00025148,2]
[311295041,1705041032087,-2800.0670389,0.00025198,2]
[311295045,1705041032101,-396.9465537,0.00025239,2]
[311295048,1705041032112,-175.18891668,0.000257,2]
[311295051,1705041032125,-8746.44340822,0.00026966,2]
[311295055,1705041032137,-165.30415622,0.000277,2]
[311295058,1705041032149,-11890.09,0.0002779,3]
[311295060,1705041032159,-9908.41,0.0002779,3]
[311295062,1705041032169,-8257.01,0.0002779,3]
[311295064,1705041032179,-6880.84,0.0002779,3]
[311295066,1705041032190,-999.26447562,0.00027798,2]
[311295069,1705041032200,-4917.8600325,0.00027798,2]
[311295071,1705041032211,-3976.41388307,0.00027798,2]
[311295073,1705041032222,-156.86767994,0.00027798,2]
[311295075,1705041032233,-687.59711705,0.00027798,2]
[311295077,1705041032244,-2093.08732709,0.00027798,2]
[311295079,1705041032256,-3362.52138301,0.00027798,2]
[311295080,1705041032268,-360.12535493,0.00027798,2]
[311295092,1705041038027,-5296.10724531,0.00027798,2]
[311295093,1705041038039,-681.32860443,0.00027798,2]
[311295094,1705041038050,-250.88169686,0.00027798,2]
[311295095,1705041038060,-1463.79252709,0.00027799,2]
[311295096,1705041038068,-45364.34143838,0.000278,7]
[311295243,1705041041068,-2666.48487157,0.000278,7]
[311295257,1705041043821,-5734.03,0.0002779,3]
[311295258,1705041043830,-1421.96999999,0.000278,7]
[311295259,1705041043842,-460.04425413,0.000278,7]
[311295430,1705042232199,-561.48714245,0.0002497,2]
[311295470,1705042239091,-219.02226915,0.00024969,2]
[311295472,1705042239100,-287.02507339,0.0002497,2]
[311295474,1705042239109,-380.0,0.00025,2]
[311295476,1705042239118,-289.5463958,0.00025,2]
[311295490,1705042239257,-166.666666,0.00025481,2]
[311295493,1705042239270,-170.81326,0.00025597,2]
[311295495,1705042239280,-209.44310991,0.000257,2]
[311295497,1705042239289,-697.82610065,0.00025751,2]
[311295549,1705042241314,-3319.37173545,0.00025751,2]
[311295550,1705042241324,-7689.50544656,0.00026966,2]
[311295551,1705042241337,-165.30415621,0.000277,2]
[311295552,1705042241347,-191.28393328,0.00027798,2]
[311295553,1705042241355,-155.2610649,0.00027798,2]
[311295554,1705042241364,-1537.09734335,0.00027799,2]
[311295555,1705042241373,-15883.01474783,0.000278,7]
[311295562,1705042243192,-266.50001777,0.00024968,2]
[311295563,1705042243202,-2166.58606996,0.0002779,3]
[311295564,1705042243213,-1779.31603066,0.0002779,3]
[311295578,1705042246394,-778.34355977,0.0002779,3]
[311295804,1705042875044,-207.47110821,0.000125,2]
[311295808,1705042933127,18871.58316441,0.000125,2]
[311295809,1705042935663,3832.65564611,0.000125,2]
[311295811,1705042942295,534.24188237,0.000125,2]
[311295812,1705042942693,1273.97108052,0.000125,2]
[311295813,1705042947128,15378.16566588,0.000125,2]
[311295814,1705042947676,2709.89105085,0.000125,2]
[311295815,1705042949640,619.63037311,0.000125,2]
[311295816,1705042952498,3212.89361584,0.000125,2]
[311295817,1705042958280,534.24188237,0.000125,2]
[311295818,1705042959381,342.5163969,0.000125,2]
[311295819,1705042960683,1273.97108052,0.000125,2]
[311295820,1705042964357,3212.89361584,0.000125,2]
[311295821,1705042965633,469.81197359,0.000125,2]
[311295822,1705042977386,342.5163969,0.000125,2]
[311295823,1705042980284,170.15427713,0.000125,2]
[311295824,1705042980861,715.53498781,0.000125,2]
[311295825,1705042982342,1821.30955165,0.000125,2]
[311295829,1705042999393,343.23675492,0.000125,2]
[311295845,1705043157377,344.5228,0.0003,30]
[311296038,1705043444000,-1466.31228556,0.00020841,2]
[311296039,1705043444010,-219.02226915,0.0002222,2]
[311296040,1705043444019,-638.5793576,0.00022221,2]
[311296175,1705044336160,2013.1814671,0.00022219,5]
[311296239,1705044473508,200.0,0.00021981,7]
[311296346,1705044632486,-525.7882447,0.0001883,2]
[311296348,1705044632496,-219.02226915,0.00018831,2]
[311296350,1705044632505,-155.05737123,0.00018832,2]
[311296352,1705044632514,-298.30908583,0.00018832,2]
[311296356,1705044632544,-993.08512227,0.00018832,2]
[311296358,1705044632553,-1181.61865836,0.00018833,2]
[311296360,1705044632565,-798.02964537,0.00018833,2]
[311296438,1705044638735,-18888.59369464,0.00018833,2]
[311296440,1705044638744,-6128.0470077,0.00018834,2]
[311296442,1705044638754,-617.906452,0.00018989,2]
[311296444,1705044638763,-167.433946,0.00019178,2]
[311296446,1705044638772,-169.81008005,0.00019885,2]
[311296448,1705044638781,-2533.87,0.00019985,3]
[311296450,1705044638789,-4831.93,0.00019985,3]
[311296452,1705044638798,-695.98439071,0.00019993,2]
[311296454,1705044638807,-587.05108958,0.00019993,2]
[311296456,1705044638816,-2652.49883384,0.00019993,2]
[311296457,1705044638825,-285.07735822,0.00019993,2]
[311296459,1705044638834,-1254.2361373,0.00019993,2]
[311296461,1705044638843,-416.08937434,0.00019993,2]
[311296463,1705044638853,-469.79591592,0.00019993,2]
[311296465,1705044638863,-2521.80207579,0.00019993,2]
[311296467,1705044638872,-211.45829827,0.00019993,2]
[311296469,1705044638881,-1633.37370509,0.00019993,2]
[311296471,1705044638891,-155.50415833,0.00019993,2]
[311296473,1705044638900,-34875.18634948,0.00019995,2]
[311296475,1705044638910,-9732.21099217,0.00019995,2]
[311296477,1705044638919,-155.05116689,0.00019997,3]
[311296479,1705044638929,-1688.39659197,0.00019997,2]
[311296482,1705044638939,-314.30408612,0.0002,2]
[311296483,1705044638948,-1195.27282006,0.0002,2]
[311296485,1705044638957,-155.05116689,0.0002,2]
[311296487,1705044638966,-155.05116689,0.0002,2]
[311296489,1705044638975,-266.50001777,0.0002,2]
[311296491,1705044638984,-161.79196451,0.0002,2]
[311296493,1705044638993,-155.05116689,0.0002,2]
[311296495,1705044639003,-569.37401545,0.0002,2]
[311296497,1705044639013,-315.48561899,0.0002,2]
[311296499,1705044639022,-848.51221584,0.0002,2]
[311296502,1705044639031,-677.0708176,0.0002,2]
[311296503,1705044639041,-326.84593778,0.00021,2]
[311296505,1705044639051,-151.0,0.00021056,2]
[311296507,1705044639060,-2353.4531355,0.00021184,2]
[311296509,1705044639069,-8303.44007614,0.00021554,2]
[311296511,1705044639078,-246.55773505,0.00021881,2]
[311296513,1705044639087,-166.666666,0.00021918,2]
[311296515,1705044639096,-283618.80818613,0.00021981,2]
[311296517,1705044639106,-2080.28320628,0.00021981,2]
[311296519,1705044639115,-1822.38176649,0.00021981,2]
[311296521,1705044639124,-200.0,0.00021981,2]
[311296522,1705044639133,-155.05737123,0.00021981,2]
[311296524,1705044639143,-155.05737123,0.00021981,2]
[311296526,1705044639152,-300.0,0.00021981,2]
[311296528,1705044639162,-151.0,0.00022113,2]
[311296529,1705044639171,-522.53516386,0.00022119,2]
[311296531,1705044639180,-1456.573487,0.00022211,2]
[311296533,1705044639189,-1456.573487,0.00022211,2]
[311296535,1705044639198,-2000.0,0.00022211,2]
[311296537,1705044639206,-2000.0,0.00022211,2]
[311296539,1705044639215,-1456.573487,0.00022219,2]
[311296541,1705044639224,-1456.573487,0.00022219,2]
[311296543,1705044639232,-2000.0,0.00022219,2]
[311296545,1705044639241,-2000.0,0.00022219,2]
[311296547,1705044639250,-223.90991459,0.00022219,2]
[311296549,1705044639259,-201.95619366,0.00022219,2]
[311296551,1705044639268,-282.19768026,0.00022219,2]
[311296553,1705044639278,-155.24251227,0.00022219,2]
[311296555,1705044639287,-155.6826505,0.00022219,2]
[311296556,1705044639296,-612.83509363,0.00022219,2]
[311296558,1705044639305,-204.98164116,0.00022219,2]
[311296560,1705044639315,-156.56971252,0.00022219,2]
[311296562,1705044639324,-275.00167511,0.00022219,2]
[311296564,1705044639333,-451.65400802,0.00022219,2]
[311296566,1705044639342,-1575.56837928,0.00022219,2]
[311296568,1705044639351,-15877.13272686,0.00022219,2]
[311296570,1705044639361,-2070.70229933,0.00022219,2]
[311296572,1705044639371,-155.35216624,0.00022219,2]
[311296574,1705044639381,-155.63058547,0.00022219,2]
[311296576,1705044639390,-296.02443686,0.00022219,2]
[311296578,1705044639399,-1704.90347238,0.00022219,2]
[311296580,1705044639408,-155.05116689,0.00022219,2]
[311296582,1705044639417,-307.21146084,0.0002222,2]
[311296583,1705044639426,-14018.44892128,0.0002222,2]
[311296584,1705044639435,-3083.76102233,0.0002222,2]
[311296585,1705044639444,-1456.573487,0.0002222,2]
[311296586,1705044639453,-1456.573487,0.0002222,2]
[311296587,1705044639463,-2000.0,0.0002222,2]
[311296588,1705044639472,-2000.0,0.0002222,2]
[311296589,1705044639481,-9629.71417337,0.00022221,2]
[311296590,1705044639490,-1456.573487,0.00022221,2]
[311296592,1705044639498,-1456.573487,0.00022221,2]
[311296594,1705044639508,-1456.573487,0.00022221,2]
[311296595,1705044639516,-1456.573487,0.00022221,2]
[311296596,1705044639528,-2000.0,0.00022221,2]
[311296597,1705044639537,-2000.0,0.00022221,2]
[311296598,1705044639547,-2000.0,0.00022221,2]
[311296599,1705044639556,-2000.0,0.00022221,2]
[311296600,1705044639565,-166.666666,0.00022431,2]
[311296601,1705044639575,-166.666666,0.00022944,2]
[311296602,1705044639584,-9924.74397112,0.00023,2]
[311296603,1705044639593,-2093.76186828,0.00023,2]
[311296604,1705044639603,-1456.573487,0.00023,2]
[311296605,1705044639612,-1456.573487,0.00023,2]
[311296606,1705044639621,-2000.0,0.00023,2]
[311296607,1705044639631,-2000.0,0.00023,2]
[311296608,1705044639640,-151.0,0.00023169,2]
[311296609,1705044639650,-166.666666,0.00023456,2]
[311296610,1705044639660,-246.55773501,0.00023722,2]
[311296611,1705044639669,-151.69317899,0.00023952,2]
[311296612,1705044639678,-166.666666,0.00023969,2]
[311296613,1705044639688,-4005.78937176,0.00024,2]
[311296614,1705044639698,-614.24237866,0.00024,2]
[311296615,1705044639707,-151.0,0.00024226,2]
[311296616,1705044639716,-166.666666,0.00024482,2]
[311296617,1705044639726,-1160.51772408,0.0002497,2]
[311296618,1705044639735,-289.5463958,0.00025,2]
[311296619,1705044639744,-231.81151557,0.00025,2]
[311296620,1705044639753,-293.81485461,0.00025,2]
[311296621,1705044639762,-155.06202481,0.00025,2]
[311296622,1705044639772,-630.56557708,0.00025,2]
[311296623,1705044639781,-4712.57883465,0.00025,2]
[311296624,1705044639790,-159.87666002,0.00025009,2]
[311296625,1705044639799,-151.0,0.00025283,2]
[311296626,1705044639809,-246.55773501,0.00025562,2]
[311296627,1705044639818,-687.75702701,0.000257,2]
[311296628,1705044639827,-170.81326,0.00025805,2]
[311296629,1705044639836,-2153.62258328,0.00026,2]
[311296630,1705044639846,-151.0,0.0002634,2]
[311296631,1705044639855,-623.12985206,0.000264,2]
[311296632,1705044639864,-73000.0,0.00027,2]
[311296633,1705044639873,-1048.857616,0.00027,2]
[311296634,1705044639882,-1048.857616,0.00027,2]
[311296635,1705044639892,-460.75992736,0.00027,2]
[311296636,1705044639901,-155.05116689,0.00027,10]
[311296637,1705044639910,-1456.573487,0.00027,2]
[311296638,1705044639919,-1456.573487,0.00027,2]
[311296639,1705044639928,-2000.0,0.00027,2]
[311296640,1705044639937,-2000.0,0.00027,2]
[311296641,1705044639946,-1315.71989545,0.000273,4]
[311296642,1705044639955,-331.23132764,0.00027397,2]
[311296643,1705044639964,-151.0,0.00027397,2]
[311296644,1705044639973,-415.48279619,0.00027397,2]
[311296645,1705044639982,-2668.75780514,0.00027397,2]
[311296646,1705044639992,-2076.82617599,0.000274,2]
[311296647,1705044640001,-1456.573487,0.000274,2]
[311296648,1705044640010,-1456.573487,0.000274,2]
[311296649,1705044640020,-2000.0,0.000274,2]
[311296650,1705044640029,-2000.0,0.000274,2]
[311296651,1705044640038,-246.55773501,0.00027403,2]
[311296652,1705044640048,-620.1564926,0.0002772,2]
[311296653,1705044640057,-642.93704766,0.00027788,2]
[311296654,1705044640066,-333.90826657,0.0002779,5]
[311296655,1705044640075,-169.81008003,0.00027793,3]
[311296656,1705044640084,-155.41699317,0.000278,2]
[311296657,1705044640093,-156.9151563,0.000278,2]
[311296658,1705044640102,-2000.0,0.000278,2]
[311296659,1705044640112,-252.385167,0.000278,2]
[311296660,1705044640122,-252.385167,0.000278,2]
[311296661,1705044640131,-1048.857616,0.000278,2]
[311296662,1705044640140,-1048.857616,0.000278,2]
[311296663,1705044640150,-2000.0,0.0002781,2]
[311296664,1705044640159,-196.694393,0.0002781,2]
[311296665,1705044640169,-1456.573487,0.0002781,2]
[311296666,1705044640179,-1456.573487,0.0002781,2]
[311296667,1705044640188,-2000.0,0.0002781,2]
[311296668,1705044640197,-2000.0,0.0002781,2]
[311296669,1705044640207,-2000.0,0.0002782,2]
[311296670,1705044640216,-2000.0,0.0002783,2]
[311296671,1705044640226,-151.0,0.0002784,2]
[311296672,1705044640235,-2000.0,0.0002784,2]
[311296673,1705044640245,-252.385167,0.0002784,2]
[311296674,1705044640254,-252.385167,0.0002784,2]
[311296675,1705044640263,-1048.857616,0.0002784,2]
[311296676,1705044640272,-1048.857616,0.0002784,2]
[311296677,1705044640281,-1456.573487,0.0002784,2]
[311296678,1705044640290,-1456.573494,0.0002784,2]
[311296679,1705044640299,-2000.0,0.0002784,2]
[311296680,1705044640308,-2000.0,0.0002784,2]
[311296681,1705044640317,-2000.0,0.0002785,2]
[311296682,1705044640326,-1048.857616,0.0002785,2]
[311296683,1705044640335,-1048.857616,0.0002785,2]
[311296684,1705044640343,-2000.0,0.0002786,2]
[311296685,1705044640353,-252.385167,0.0002786,2]
[311296686,1705044640362,-252.385167,0.0002786,2]
[311296687,1705044640371,-2000.0,0.0002787,2]
[311296688,1705044640380,-2000.0,0.0002788,2]
[311296689,1705044640389,-2000.0,0.0002789,2]
[311296690,1705044640399,-151.0,0.0002789,2]
[311296691,1705044640409,-252.385167,0.0002789,2]
[311296692,1705044640418,-252.385167,0.0002789,2]
[311296693,1705044640427,-1048.857616,0.0002789,2]
[311296694,1705044640436,-1048.857616,0.0002789,2]
[311296695,1705044640445,-2000.0,0.000279,2]
[311296696,1705044640455,-1048.857616,0.000279,2]
[311296697,1705044640464,-1048.857616,0.000279,2]
[311296698,1705044640476,-2000.0,0.0002791,2]
[311296699,1705044640486,-2000.0,0.0002792,2]
[311296700,1705044640496,-252.385167,0.0002792,2]
[311296701,1705044640506,-252.385167,0.0002792,2]
[311296702,1705044640516,-3292.729325,0.0002793,2]
[311296703,1705044640531,-151.0,0.0002793,2]
[311296704,1705044640549,-252.385167,0.0002793,2]
[311296705,1705044640569,-252.385167,0.0002793,2]
[311296706,1705044640579,-1048.857616,0.0002793,2]
[311296707,1705044640589,-1048.857616,0.0002793,2]
[311296708,1705044640598,-1048.857616,0.0002793,2]
[311296710,1705044640607,-1048.857616,0.0002793,2]
[311296712,1705044640617,-3002.0,0.00028,2]
[311296714,1705044640626,-237.7053383,0.00028,2]
[311296715,1705044640635,-151.0,0.00028454,2]
[311296716,1705044640645,-617.906452,0.00028484,2]
[311296717,1705044640654,-171.974707,0.0002899,2]
[311296718,1705044640664,-252.385167,0.0002899,2]
[311296719,1705044640673,-252.385167,0.0002899,2]
[311296720,1705044640682,-1048.857616,0.0002899,2]
[311296721,1705044640691,-1048.857616,0.0002899,2]
[311296722,1705044640700,-2033.64412158,0.00029,2]
[311296723,1705044640709,-3025.65541023,0.00029,2]
[311296724,1705044640718,-252.385167,0.00029,2]
[311296725,1705044640727,-252.385167,0.00029,2]
[311296726,1705044640737,-310.07132537,0.00029,2]
[311296727,1705044640746,-1048.857616,0.00029,2]
[311296728,1705044640755,-1048.85761192,0.00029,2]
[311296729,1705044640765,-50000.0,0.00029039,2]
[311296730,1705044640774,-480.47892389,0.0002907,3]
[311296731,1705044640783,-869.45348816,0.0002907,3]
[311296732,1705044640792,-394.4295835,0.0002907,3]
[311296733,1705044640802,-51661.82329223,0.0002907,3]
[311296734,1705044640811,-252.385167,0.0002907,2]
[311296735,1705044640820,-252.385167,0.0002907,2]
[311296736,1705044640829,-252.385167,0.000291,2]
[311296737,1705044640837,-252.38515854,0.000291,2]
[311296738,1705044640846,-620.00782463,0.00029106,2]
[311296739,1705044640855,-246.55773501,0.00029243,2]
[311296740,1705044640864,-49653.10630059,0.000293,5]
[311296741,1705044640874,-167.10606654,0.00029343,2]
[311296742,1705044640883,-978.10769969,0.000295,3]
[311296743,1705044640892,-151.0,0.0002951,2]
[311296744,1705044640901,-167.10606654,0.00029534,2]
[311296745,1705044640911,-10511.80674888,0.0002969,2]
[311296746,1705044640920,-153.70464543,0.0002969,5]
[311296747,1705044640929,-153.7,0.0002969,5]
[311296748,1705044640939,-254.3791948,0.00029701,3]
[311296749,1705044640948,-1712.82691585,0.00029789,2]
[311296750,1705044640957,-191.28393328,0.00029789,2]
[311296751,1705044640966,-155.2610649,0.00029789,2]
[311296752,1705044640975,-2912.17,0.00029789,2]
[311296753,1705044640984,-2912.17,0.00029789,2]
[311296754,1705044640993,-2912.17,0.00029789,2]
[311296755,1705044641002,-357485.11066285,0.0002979,7]
[311296756,1705044641011,-740.84179056,0.00029898,2]
[311296757,1705044641113,-1913.26439615,0.00029898,2]
[311296758,1705044641123,-18786.15199574,0.000299,2]
[311296759,1705044641133,-161.047082,0.00029954,2]
[311296760,1705044641142,-168.308979,0.00029954,2]
[311296761,1705044641152,-183.203267,0.00029954,2]
[311296762,1705044641162,-188.496881,0.00029954,2]
[311296763,1705044641171,-164.641066,0.00029954,2]
[311296764,1705044641181,-3070.5357447,0.00029989,2]
[311296765,1705044641190,-322.57910218,0.00029989,2]
[311296766,1705044641200,-199.70646134,0.00029998,2]
[311296767,1705044641209,-1038.08697452,0.00029998,2]
[311296768,1705044641219,-301.18213313,0.00029998,2]
[311296769,1705044641228,-2746.20575269,0.00029998,2]
[311296770,1705044641238,-530.47429982,0.00029999,2]
[311296771,1705044641247,-500.0,0.00029999,2]
[311296772,1705044641256,-500.0,0.00029999,2]
[311296773,1705044641265,-470.32596766,0.00029999,2]
[311296774,1705044641275,-416.92016413,0.00029999,2]
[311296775,1705044641284,-431.9087172,0.00029999,2]
[311296776,1705044641293,-500.0,0.00029999,2]
[311296777,1705044641302,-500.0,0.00029999,2]
[311296778,1705044641311,-500.0,0.00029999,2]
[311296779,1705044641320,-500.0,0.00029999,2]
[311296780,1705044641329,-482.22258787,0.00029999,2]
[311296781,1705044641338,-500.0,0.00029999,2]
[311296782,1705044641347,-500.0,0.00029999,2]
[311296783,1705044641355,-554.29601807,0.00029999,2]
[311296784,1705044641364,-500.0,0.00029999,2]
[311296785,1705044641374,-500.0,0.00029999,2]
[311296786,1705044641383,-500.0,0.00029999,2]
[311296787,1705044641392,-500.0,0.00029999,2]
[311296788,1705044641401,-500.0,0.00029999,2]
[311296789,1705044641411,-500.0,0.00029999,2]
[311296790,1705044641419,-500.0,0.00029999,2]
[311296791,1705044641428,-500.0,0.00029999,2]
[311296792,1705044641437,-500.0,0.00029999,2]
[311296793,1705044641446,-500.0,0.00029999,2]
[311296794,1705044641455,-500.0,0.00029999,2]
[311296795,1705044641464,-3937.80281635,0.0003,2]
[311296796,1705044641473,-622.25479523,0.0003,14]
[311296797,1705044641482,-1000.0,0.0003,7]
[311296798,1705044641491,-155.09195823,0.0003,4]
[311296799,1705044641500,-275.63387541,0.0003,7]
[311296800,1705044641509,-544.96988162,0.0003,2]
[311296801,1705044641518,-1000.0,0.0003,2]
[311296802,1705044641527,-89945.55924717,0.0003,7]
[311296803,1705044641535,-157.6845518,0.0003,2]
[311296804,1705044641545,-463.55854526,0.0003,4]
[311296805,1705044641554,-639.95393342,0.0003,4]
[311296806,1705044641563,-2152.16950054,0.0003,4]
[311296807,1705044641572,-649.89024252,0.0003,4]
[311296808,1705044641581,-6976.66580817,0.0003,4]
[311296809,1705044641590,-44644.13637458,0.0003,15]
[311296810,1705044641598,-409.93497714,0.0003,2]
[311296811,1705044641607,-10529.66648615,0.0003,4]
[311296812,1705044641616,-1008.0,0.0003,2]
[311296813,1705044641625,-5499.99999601,0.0003,2]
[311296814,1705044641634,-12509.05639231,0.0003,7]
[311296815,1705044641643,-155.0341075,0.0003,2]
[311296816,1705044641652,-500.0,0.0003,2]
[311296817,1705044641661,-350.73379528,0.0003,2]
[311296818,1705044641670,-4453.4726525,0.0003,4]
[311296819,1705044641680,-37216.37459119,0.0003,3]
[311296820,1705044641694,-1163.56016456,0.0003,3]
[311296821,1705044641703,-1212.50921507,0.0003,2]
[311296822,1705044641712,-257.40326984,0.0003,4]
[311296823,1705044641720,-500.0,0.0003,3]
[311296824,1705044641729,-1500.0,0.0003,2]
[311296825,1705044641738,-500.0,0.0003,2]
[311296826,1705044641746,-479.3378713,0.0003,10]
[311296827,1705044641756,-160.0,0.0003,2]
[311296828,1705044641764,-331.567879,0.00030033,2]
[311296829,1705044641773,-209.371235,0.00030033,2]
[311296830,1705044641782,-183.203267,0.00030033,2]
[311296831,1705044641791,-188.496881,0.00030033,2]
[311296832,1705044641800,-165.78394,0.00030033,2]
[311296833,1705044641809,-244.580289,0.00030033,2]
[311296834,1705044641817,-183.203266,0.00030033,2]
[311296835,1705044641826,-188.49688,0.00030033,2]
[311296836,1705044641835,-198.41,0.00030036,5]
[311296837,1705044641843,-500.0,0.00030099,4]
[311296838,1705044641852,-181.32419802,0.00030099,4]
[311296839,1705044641861,-500.0,0.00030099,4]
[311296840,1705044641870,-651.92460585,0.00030099,4]
[311296841,1705044641878,-219.27132606,0.00030099,4]
[311296842,1705044641887,-484.40523518,0.00030099,4]
[311296846,1705044643637,-153.70464543,0.0002969,5]
[311296847,1705044643648,-153.70464543,0.0002969,5]
[311296848,1705044643657,-153.70464543,0.0002969,5]
[311296849,1705044643667,-153.70464543,0.0002969,5]
[311296851,1705044643676,-153.70464543,0.0002969,5]
[311296853,1705044643686,-153.70464543,0.0002969,5]
[311296855,1705044643694,-153.70464543,0.0002969,5]
[311296857,1705044643704,-153.7,0.000299,5]
[311296859,1705044643713,-15.59476482,0.00030099,4]
[311296861,1705044643723,-64.70900022,0.00030099,4]
[311297001,1705045435236,1000.0,0.0003,30]
[311297241,1705045831721,-219.02226915,0.00019998,2]
[311297242,1705045831731,-248.07703084,0.00019999,2]
[311297244,1705045831743,-61.96253536,0.00019999,2]
[311297246,1705045831753,-156.20931047,0.0002,2]
[311297248,1705045831762,-266.50001777,0.00020998,2]
[311297250,1705045831772,-848.51221584,0.00020999,2]
[311297251,1705045831781,-110.95738571,0.00021,2]
[311297303,1705045837899,-368.47994274,0.00021,2]
[311297305,1705045837908,-9834.36958014,0.00021408,2]
[311297543,1705045840812,-251.39133245,0.00021408,2]
[311297545,1705045840824,-6910.41921819,0.00021408,2]
[311297547,1705045840835,-2330.02756732,0.00021408,2]
[311297549,1705045840844,-169.81008003,0.00021818,2]
[311297551,1705045840852,-171.185352,0.00021918,2]
[311297553,1705045840861,-156.20554179,0.00021981,2]
[311297555,1705045840871,-200.36696026,0.00022,2]
[311297558,1705045840879,-171.185352,0.00022559,2]
[311297561,1705045840887,-4323.328839,0.00022753,2]
[311297564,1705045840895,-4323.328839,0.00022753,2]
[311297566,1705045840903,-4323.328839,0.00022753,2]